bitfinex/quotes_BTCUSD_20250408
["timestamp","ask_amount","ask_price","bid_price","bid_amount"]
[1744145852705,0.34,77079.0,77075.0,0.207589]
[1744145853582,0.34,77079.0,77076.0,0.001]
[1744145853779,0.54758,77079.0,77076.0,0.001]
[1744145854067,0.34,77079.0,77075.0,0.207589]
[1744145854279,0.34,77079.0,77075.0,0.208589]
[1744145854472,0.220538,77084.0,77075.0,0.208589]
[1744145854473,0.34,77081.0,77079.0,0.220552]
[1744145854672,0.34,77081.0,77080.0,0.012973]
[1744145855730,0.34,77084.0,77081.0,0.207573]
[1744145856139,0.34,77081.0,77076.0,0.001]
[1744145856273,0.002,77081.0,77076.0,0.001]
[1744145856475,0.002,77081.0,77074.0,0.207591]
[1744145856677,0.207578,77080.0,77074.0,0.207591]
[1744145856877,0.207581,77079.0,77075.0,0.207589]
[1744145857348,0.207581,77079.0,77074.0,0.207591]
[1744145857577,0.012974,77077.0,77076.0,0.001]
[1744145857775,0.220558,77077.0,77076.0,0.001]
[1744145858047,0.220558,77077.0,77071.0,0.2076]
[1744145858048,0.20759,77075.0,77071.0,0.2076]
[1744145858953,0.20759,77075.0,77072.0,0.207597]
[1744145859816,0.207595,77073.0,77071.0,0.002]
[1744145859998,0.207601,77071.0,77068.0,0.207608]
[1744145860344,0.207601,77071.0,77063.0,0.220595]
[1744145860345,0.207609,77068.0,77063.0,0.220595]
[1744145860574,0.207609,77068.0,77064.0,0.220595]
[1744145860823,0.207606,77069.0,77066.0,0.207614]
[1744145860962,0.207608,77068.0,77065.0,0.207616]
[1744145861159,0.207608,77068.0,77064.0,0.220595]
[1744145861160,0.34,77081.0,77077.0,0.012974]
[1744145861382,0.547575,77081.0,77077.0,0.220555]
[1744145861588,0.547575,77081.0,77076.0,0.22056]
[1744145861791,0.34,77076.0,77074.0,0.20759]
[1744145862410,0.34,77076.0,77075.0,0.20759]
[1744145862586,0.547589,77076.0,77072.0,0.207596]
[1744145862789,0.547589,77076.0,77073.0,0.207594]
[1744145863031,0.34,77074.0,77072.0,0.207597]
[1744145863591,0.34,77074.0,77072.0,0.210597]
[1744145863789,0.34,77074.0,77072.0,0.212597]
[1744145864211,0.34,77074.0,77072.0,0.209597]
[1744145864412,0.34,77074.0,77072.0,0.209596]
[1744145864614,0.34,77074.0,77072.0,0.212596]
[1744145864815,0.547595,77073.0,77072.0,0.005]
[1744145864994,0.547595,77073.0,77072.0,0.003]
[1744145865197,0.34,77073.0,77072.0,0.223572]
[1744145865473,0.34,77073.0,77072.0,0.225572]
[1744145865675,0.34,77073.0,77072.0,0.223572]
[1744145865911,0.34,77073.0,77072.0,0.222572]
[1744145866385,0.34,77073.0,77072.0,0.225572]
[1744145869626,0.207571,77082.0,77079.0,0.207577]
[1744145869827,0.207574,77081.0,77078.0,0.207581]
[1744145869976,0.207571,77082.0,77079.0,0.207578]
[1744145870181,0.207575,77081.0,77075.0,0.220561]
[1744145870387,0.207575,77081.0,77078.0,0.207579]
[1744145870604,0.207576,77082.0,77079.0,0.207579]
[1744145870821,0.02007637,77086.0,77081.0,0.220544]
[1744145871021,0.207553,77089.0,77081.0,0.220544]
[1744145871022,0.207564,77085.0,77082.0,0.20757]
[1744145871261,0.207555,77088.0,77082.0,0.012973]
[1744145871459,0.01309661,77090.0,77081.0,0.012973]
[1744145871460,0.00012561,77090.0,77088.0,0.012972]
[1744145871670,0.20767561,77090.0,77085.0,0.012972]
[1744145871846,0.207557,77088.0,77084.0,0.220535]
[1744145872051,0.207558,77087.0,77083.0,0.207563]
[1744145872454,0.20956,77086.0,77083.0,0.207563]
[1744145872651,0.207558,77087.0,77081.0,0.012973]
[1744145872652,0.207567,77084.0,77081.0,0.207572]
[1744145872831,0.207567,77084.0,77082.0,0.20757]
[1744145873048,0.220535,77085.0,77082.0,0.20757]
[1744145873616,0.207566,77084.0,77082.0,0.20757]
[1744145873823,0.208566,77084.0,77082.0,0.20757]
[1744145875161,0.207566,77084.0,77082.0,0.20757]
[1744145875567,0.207569,77083.0,77081.0,0.207572]
[1744145876974,0.208569,77083.0,77081.0,0.207572]
[1744145877599,0.001,77083.0,77079.0,0.220551]
[1744145877805,0.208569,77083.0,77081.0,0.207573]
[1744145878006,0.210569,77083.0,77081.0,0.207573]
[1744145878213,0.003,77083.0,77081.0,0.207573]
[1744145878690,0.003,77083.0,77082.0,0.220544]
[1744145878893,0.003,77083.0,77082.0,0.22313835]
[1744145879104,0.002,77083.0,77082.0,0.22313835]
[1744145879830,0.02005074,77087.0,77086.0,0.220532]
[1744145880262,0.34,77089.0,77087.0,0.207557]
[1744145881521,0.34,77089.0,77081.0,0.012973]
[1744145881522,0.207565,77085.0,77081.0,0.012973]
[1744145881724,0.012972,77086.0,77081.0,0.220544]
[1744145881725,0.207567,77084.0,77081.0,0.220544]
[1744145883497,0.207567,77084.0,77082.0,0.20757]
[1744145883498,0.208567,77084.0,77082.0,0.20757]
[1744145883697,0.001,77084.0,77083.0,0.220541]
[1744145885029,0.003,77084.0,77083.0,0.220541]
[1744145885172,0.22738239,77087.0,77084.0,0.207564]
[1744145886144,0.22738239,77087.0,77085.0,0.207562]
[1744145886310,0.22738339,77087.0,77085.0,0.207562]
[1744145886841,0.20756,77086.0,77084.0,0.207564]
[1744145887410,0.02682539,77087.0,77085.0,0.207563]
[1744145887624,0.02282539,77087.0,77085.0,0.220535]
[1744145887825,0.02282539,77087.0,77086.0,0.20756]
[1744145888550,0.02382539,77087.0,77086.0,0.20756]
[1744145888953,0.01982539,77087.0,77084.0,0.207564]
[1744145889251,0.005,77087.0,77083.0,0.012973]
[1744145889459,0.009,77087.0,77086.0,0.20756]
[1744145889599,0.02872422,77087.0,77086.0,0.220532]
[1744145889802,0.009,77087.0,77086.0,0.220532]
[1744145890026,0.005,77087.0,77086.0,0.220532]
[1744145890221,0.003,77087.0,77086.0,0.220532]
[1744145890654,0.007,77087.0,77086.0,0.220532]
[1744145890855,0.003,77087.0,77086.0,0.220532]
[1744145891289,0.008,77087.0,77086.0,0.220532]
[1744145891491,0.005,77087.0,77086.0,0.220532]
[1744145891853,0.009,77087.0,77085.0,0.207562]
[1744145892214,0.009,77087.0,77086.0,0.20756]
[1744145892386,0.02862133,77087.0,77086.0,0.20756]
[1744145892583,0.009,77087.0,77086.0,0.20756]
[1744145892754,0.009,77087.0,77085.0,0.220534]
[1744145893328,0.08,77088.0,77085.0,0.220534]
[1744145893652,0.004,77087.0,77086.0,0.20756]
[1744145893891,0.004,77087.0,77085.0,0.220534]
[1744145894468,0.210558,77087.0,77084.0,0.220537]
[1744145895007,0.003,77087.0,77086.0,0.20756]
[1744145895167,0.287555,77088.0,77086.0,0.20756]
[1744145895371,0.004,77087.0,77086.0,0.20756]
[1744145895571,0.007,77087.0,77086.0,0.20756]
[1744145895816,0.007,77087.0,77085.0,0.207562]
[1744145896111,0.004,77087.0,77086.0,0.20756]
[1744145896408,0.10270797,77088.0,77087.0,0.207557]
[1744145896623,0.44270797,77088.0,77086.0,0.220532]
[1744145897364,0.004,77087.0,77086.0,0.20756]
[1744145897722,0.43870797,77088.0,77086.0,0.20756]
[1744145897924,0.012973,77081.0,77076.0,0.012974]
[1744145898089,0.207577,77080.0,77078.0,0.207581]
[1744145898995,0.207577,77080.0,77077.0,0.207584]
[1744145899930,0.20758,77079.0,77076.0,0.220556]
[1744145900367,0.207577,77080.0,77077.0,0.207583]
[1744145900576,0.207579,77079.0,77077.0,0.207583]
[1744145901195,0.207579,77079.0,77072.0,0.012974]
[1744145901196,0.012974,77075.0,77066.0,0.00963909]
[1744145901446,0.012974,77075.0,77070.0,0.207601]
[1744145901621,0.207596,77073.0,77071.0,0.20794276]
[1744145901964,0.207594,77074.0,77071.0,0.20794276]
[1744145902164,0.207595,77073.0,77071.0,0.20794276]
[1744145902435,0.207595,77073.0,77071.0,0.21194276]
[1744145902788,0.207594,77074.0,77071.0,0.21194276]
[1744145903931,0.207594,77074.0,77071.0,0.20794276]
[1744145904133,0.001,77073.0,77071.0,0.20794276]
[1744145904431,0.207594,77074.0,77071.0,0.20794276]
[1744145904840,0.208594,77074.0,77071.0,0.20794276]
[1744145906100,0.207594,77074.0,77071.0,0.20794276]
[1744145906374,0.001,77073.0,77071.0,0.20794276]
[1744145906875,0.220564,77075.0,77072.0,0.207597]
[1744145907079,0.001,77074.0,77073.0,0.207595]
[1744145907314,0.001,77074.0,77073.0,0.220569]
[1744145908540,0.002,77074.0,77073.0,0.220569]
[1744145909495,0.001,77074.0,77073.0,0.220569]
[1744145909725,0.003,77074.0,77073.0,0.207595]
[1744145911008,0.003,77074.0,77072.0,0.207597]
[1744145911536,0.003,77074.0,77073.0,0.267869]
[1744145911882,0.002,77074.0,77073.0,0.267869]
[1744145912307,0.34,77080.0,77079.0,0.220552]
[1744145912494,0.01870797,77088.0,77087.0,0.220529]
[1744145912692,0.00012561,77090.0,77089.0,0.207552]
[1744145913899,0.00612561,77090.0,77089.0,0.208552]
[1744145914104,0.34612561,77090.0,77089.0,0.208552]
[1744145914313,0.34612561,77090.0,77089.0,0.001]
[1744145914537,0.34612561,77090.0,77089.0,0.208552]
[1744145914936,0.35909661,77090.0,77089.0,0.001]
[1744145915156,0.57164561,77090.0,77089.0,0.001]
[1744145915357,0.34,77087.0,77086.0,0.20756]
[1744145915555,0.34,77089.0,77086.0,0.20756]
[1744145915738,0.34,77087.0,77086.0,0.20756]
[1744145916148,0.34,77087.0,77086.0,0.220532]
[1744145916359,0.34,77087.0,77086.0,0.20756]
[1744145916592,0.34,77087.0,77086.0,0.220532]
[1744145916749,0.345,77089.0,77087.0,0.207556]
[1744145917474,0.08,77088.0,77087.0,0.207557]
[1744145918216,0.08,77088.0,77086.0,0.20756]
[1744145918423,0.08,77088.0,77086.0,0.220532]
[1744145918633,0.08,77088.0,77087.0,0.207557]
[1744145918846,0.08,77088.0,77086.0,0.220532]
[1744145919050,0.08,77088.0,77086.0,0.20756]
[1744145919401,0.220542,77083.0,77075.0,0.012974]
[1744145919703,0.207565,77085.0,77081.0,0.207571]
[1744145920506,0.207566,77084.0,77080.0,0.220544]
[1744145920707,0.207573,77081.0,77077.0,0.207584]
[1744145920914,0.207566,77084.0,77078.0,0.012973]
[1744145921325,0.207574,77081.0,77078.0,0.207581]
[1744145921531,0.012972,77084.0,77078.0,0.012973]
[1744145921734,0.207572,77082.0,77079.0,0.207579]
[1744145921936,0.207571,77082.0,77079.0,0.220552]
[1744145923136,0.547562,77086.0,77079.0,0.220552]
[1744145923340,0.001,77082.0,77080.0,0.207576]
[1744145924046,0.001,77082.0,77081.0,0.220546]
[1744145924978,0.002,77082.0,77081.0,0.220546]
[1744145925185,0.001,77082.0,77081.0,0.220546]
[1744145925435,0.003,77082.0,77081.0,0.220546]
[1744145925829,0.001,77082.0,77081.0,0.220546]
[1744145925999,0.003,77082.0,77081.0,0.220546]
[1744145926175,0.002,77082.0,77081.0,0.220546]
[1744145926789,0.003,77082.0,77081.0,0.220546]
[1744145930915,0.343,77082.0,77080.0,0.207576]
[1744145931141,0.343,77082.0,77081.0,0.220546]
[1744145931393,0.343,77082.0,77081.0,0.207573]
[1744145931586,0.343,77082.0,77080.0,0.207576]
[1744145931705,0.341,77082.0,77079.0,0.220552]
[1744145932106,0.550571,77082.0,77079.0,0.207579]
[1744145932325,0.549571,77082.0,77078.0,0.20758]
[1744145932554,0.342,77082.0,77078.0,0.207581]
[1744145932802,0.003,77082.0,77077.0,0.012974]
[1744145933232,0.209571,77082.0,77078.0,0.207581]
[1744145933467,0.34,77081.0,77080.0,0.207576]
[1744145933946,0.34,77081.0,77080.0,0.220549]
[1744145934586,0.34,77086.0,77085.0,0.207563]
[1744145934794,0.34,77086.0,77084.0,0.220535]
[1744145934999,0.34,77086.0,77085.0,0.220535]
[1744145936315,0.344,77086.0,77085.0,0.220535]
[1744145936918,0.347,77086.0,77085.0,0.220535]
[1744145939662,0.007,77086.0,77085.0,0.220535]
[1744145940570,0.007,77086.0,77083.0,0.207568]
[1744145941076,0.007,77086.0,77084.0,0.207565]
[1744145941501,0.004,77086.0,77084.0,0.207565]
[1744145941694,0.207558,77087.0,77084.0,0.207565]
[1744145941934,0.003,77086.0,77084.0,0.207565]
[1744145942246,0.207558,77087.0,77084.0,0.207565]
[1744145942418,0.207558,77087.0,77085.0,0.207563]
[1744145942622,0.004,77086.0,77085.0,0.207563]
[1744145942823,0.006,77086.0,77085.0,0.207563]
[1744145943431,0.004,77086.0,77085.0,0.220535]
[1744145943842,0.42,77088.0,77086.0,0.207558]
[1744145944145,0.003,77087.0,77086.0,0.207558]
[1744145944499,0.003,77087.0,77084.0,0.207565]
[1744145944726,0.34,77087.0,77085.0,0.012972]
[1744145944951,0.34,77087.0,77085.0,0.220533]
[1744145945506,0.344,77087.0,77084.0,0.207565]
[1744145945712,0.344,77087.0,77086.0,0.20756]
[1744145946122,0.344,77087.0,77085.0,0.220534]
[1744145946724,0.34,77087.0,77085.0,0.012972]
[1744145946963,0.34,77087.0,77085.0,0.220534]
[1744145947185,0.345,77087.0,77086.0,0.20756]
[1744145947400,0.348,77087.0,77085.0,0.220534]
[1744145947611,0.343,77087.0,77086.0,0.20756]
[1744145948089,0.34,77087.0,77086.0,0.20756]
[1744145948311,0.547557,77087.0,77085.0,0.207562]
[1744145948512,0.344,77087.0,77085.0,0.207562]
[1744145948717,0.551557,77087.0,77085.0,0.207562]
[1744145948917,0.551557,77087.0,77085.0,0.196854]
[1744145949558,0.34,77087.0,77085.0,0.209826]
[1744145949768,0.344,77087.0,77085.0,0.209826]
[1744145949926,0.33668674,77087.0,77085.0,0.209826]
[1744145950340,0.33668674,77087.0,77086.0,0.20756]
[1744145951282,0.33368674,77087.0,77086.0,0.20756]
[1744145951576,0.33768674,77087.0,77086.0,0.20756]
[1744145952296,0.004,77087.0,77086.0,0.220532]
[1744145952658,0.009,77087.0,77086.0,0.220532]
[1744145956269,0.009,77087.0,77086.0,0.3589756]
[1744145956470,0.009,77087.0,77086.0,0.0498]
[1744145956786,0.009,77087.0,77083.0,0.0465]
[1744145956989,0.08,77088.0,77087.0,0.012972]
[1744145957210,0.08,77088.0,77087.0,0.220529]
[1744145957705,0.01799863,77090.0,77089.0,0.220524]
[1744145959936,0.00012561,77090.0,77089.0,0.220524]
[1744145960080,0.00012561,77090.0,77089.0,0.221524]
[1744145960946,0.01709366,77090.0,77089.0,0.221524]
[1744145961357,0.00012561,77090.0,77089.0,0.221524]
[1744145961554,0.00012561,77090.0,77089.0,0.001]
[1744145961772,0.20767461,77090.0,77089.0,0.001]
[1744145963284,0.00012561,77090.0,77089.0,0.221524]
[1744145963648,0.00012561,77090.0,77089.0,0.001]
[1744145963975,0.00012561,77090.0,77089.0,0.208552]
[1744145964866,0.01693698,77090.0,77089.0,0.208552]
[1744145966011,0.22448598,77090.0,77089.0,0.001]
[1744145966189,0.56448598,77090.0,77089.0,0.001]
[1744145966419,0.87432142,77090.0,77089.0,0.001]
[1744145966620,0.012974,77075.0,77065.0,0.207616]
[1744145966858,0.207609,77068.0,77065.0,0.207616]
[1744145966982,0.207612,77067.0,77065.0,0.207616]
[1744145967387,0.207609,77068.0,77065.0,0.207615]
[1744145967825,0.207611,77067.0,77064.0,0.207619]
[1744145968234,0.207609,77068.0,77065.0,0.207616]
[1744145968867,0.207606,77069.0,77066.0,0.207613]
[1744145969069,0.34,77078.0,77068.0,0.012975]
[1744145969276,0.34,77073.0,77065.0,0.00974267]
[1744145969549,0.207614,77066.0,77065.0,0.006]
[1744145969756,0.207622,77063.0,77059.0,0.0465]
[1744145969974,0.207625,77062.0,77060.0,0.12625864]
[1744145970107,0.207619,77065.0,77061.0,0.207627]
[1744145970307,0.207614,77066.0,77060.0,0.12625864]
[1744145970508,0.207611,77068.0,77065.0,0.004]
[1744145970845,0.207612,77067.0,77064.0,0.207619]
[1744145972370,4.886e-05,77068.0,77067.0,0.207611]
[1744145972553,0.00104886,77068.0,77067.0,0.220586]
[1744145973107,4.886e-05,77068.0,77067.0,0.220586]
[1744145973942,4.886e-05,77068.0,77067.0,0.22618087]
[1744145974166,0.00104886,77068.0,77067.0,0.223586]
[1744145974660,0.00104886,77068.0,77067.0,0.22618088]
[1744145974860,0.00104886,77068.0,77067.0,0.223586]
[1744145976695,0.00104886,77068.0,77067.0,0.00559491]
[1744145976873,0.00104886,77068.0,77067.0,0.003]
[1744145977075,0.00104886,77068.0,77067.0,0.015975]
[1744145977541,0.00104886,77068.0,77067.0,0.223586]
[1744145978599,0.20865686,77068.0,77067.0,0.003]
[1744145978927,0.00104886,77068.0,77067.0,0.003]
[1744145979120,0.00104886,77068.0,77067.0,0.015975]
[1744145980051,0.00104886,77068.0,77067.0,0.223586]
[1744145980256,0.00104886,77068.0,77067.0,0.44623945]
[1744145980459,0.00104886,77068.0,77067.0,0.44364464]
[1744145984466,0.00104886,77068.0,77067.0,0.46736197]
[1744145985292,0.00104886,77068.0,77067.0,0.62692197]
[1744145985492,4.886e-05,77068.0,77067.0,0.62392197]
[1744145985689,0.00104886,77068.0,77067.0,0.63392197]
[1744145988399,8.6e-07,77068.0,77067.0,0.63392197]
[1744145988572,8.6e-07,77068.0,77067.0,0.64846282]
[1744145988777,8.6e-07,77068.0,77067.0,0.66310821]
[1744145988995,8.6e-07,77068.0,77067.0,1.00310821]
[1744145989450,0.0004,77099.0,77098.0,0.220498]
[1744145989605,0.00044892,77099.0,77098.0,0.220498]
[1744145989806,0.00044892,77099.0,77098.0,0.22309188]
[1744145990008,0.01754105,77099.0,77098.0,0.22309188]
[1744145990357,0.01754105,77099.0,77098.0,0.220498]
[1744145990523,0.01754105,77099.0,77098.0,0.22309178]
[1744145990685,0.01754105,77099.0,77098.0,0.34935042]
[1744145990886,0.01754105,77099.0,77098.0,0.34675664]
[1744145991689,0.00044892,77099.0,77098.0,0.35945335]
[1744145992114,0.00044892,77099.0,77098.0,0.35645335]
[1744145992516,0.00044892,77099.0,77098.0,0.36145335]
[1744145993212,0.00044892,77099.0,77098.0,0.36445335]
[1744145993435,0.00044892,77099.0,77098.0,0.36145335]
[1744145994060,0.00044892,77099.0,77098.0,0.36745335]
[1744145996492,0.00044892,77099.0,77098.0,0.46395335]
[1744145999927,0.00044892,77099.0,77098.0,0.8734942]
[1744145999928,9.2e-07,77099.0,77098.0,0.8734942]
[1744146000183,0.012961,77153.0,77098.0,0.8734942]
[1744146000184,0.0458,77140.0,77122.0,0.220429]
[1744146000386,1.08288,77185.0,77153.0,0.220341]
[1744146000387,0.0458,77154.0,77153.0,0.220341]
[1744146000584,0.00717123,77157.0,77156.0,0.01296]
[1744146000704,0.00717123,77157.0,77156.0,0.220332]
[1744146000705,0.00041918,77157.0,77156.0,0.220332]
[1744146001120,0.00041918,77157.0,77156.0,0.3491824]
[1744146001311,0.00041918,77157.0,77156.0,0.34659064]
[1744146003631,0.00041918,77157.0,77156.0,0.37030797]
[1744146004194,0.00041918,77157.0,77156.0,0.37713851]
[1744146004737,0.00041918,77157.0,77156.0,0.37304568]
[1744146005595,0.00041918,77157.0,77156.0,0.37404568]
[1744146005815,0.00041918,77157.0,77156.0,0.38858653]
[1744146006486,0.20729,77187.0,77156.0,0.38858653]
[1744146006487,1.8e-07,77159.0,77158.0,0.220326]
[1744146006695,8.8e-07,77159.0,77158.0,0.36371656]
[1744146006930,8.8e-07,77159.0,77158.0,0.36112549]
[1744146007122,8.8e-07,77159.0,77158.0,0.36135252]
[1744146007385,8.8e-07,77159.0,77158.0,0.36127397]
[1744146007525,8.8e-07,77159.0,77158.0,0.36122411]
[1744146008350,8.8e-07,77159.0,77158.0,0.36722411]
[1744146008549,8.8e-07,77159.0,77158.0,0.36422411]
[1744146008958,8.8e-07,77159.0,77158.0,0.37322411]
[1744146010030,8.8e-07,77159.0,77158.0,0.37022411]
[1744146010651,8.8e-07,77159.0,77158.0,0.37922411]
[1744146011653,8.8e-07,77159.0,77158.0,0.37022411]
[1744146012223,8.8e-07,77159.0,77158.0,0.37922411]
[1744146012587,8.8e-07,77159.0,77158.0,0.37022411]
[1744146012787,8.8e-07,77159.0,77158.0,0.37922411]
[1744146014132,8.8e-07,77159.0,77158.0,0.36468326]
[1744146014266,0.20720708,77179.0,77176.0,0.207317]
[1744146014474,0.20720708,77179.0,77174.0,0.220278]
[1744146014475,0.207312,77178.0,77174.0,0.220278]
[1744146014685,0.20720708,77179.0,77175.0,0.207319]
[1744146015085,0.20720708,77179.0,77175.0,0.220276]
[1744146015790,0.012957,77175.0,77174.0,0.004]
[1744146015998,0.012957,77175.0,77162.0,0.012959]
[1744146015999,0.012958,77170.0,77163.0,0.15968]
[1744146016185,0.012957,77173.0,77163.0,0.50624764]
[1744146016318,0.207345,77166.0,77163.0,0.379989]
[1744146016621,0.207337,77169.0,77159.0,0.207363]
[1744146016622,0.012959,77164.0,77159.0,0.207363]
[1744146016818,0.207355,77164.0,77160.0,0.207361]
[1744146017491,0.207355,77164.0,77163.0,0.003]
[1744146018155,0.207355,77164.0,77163.0,0.006]
[1744146018156,0.265614,77164.0,77163.0,0.006]
[1744146018573,0.605614,77164.0,77163.0,0.003]
[1744146018779,0.605614,77164.0,77158.0,9.862e-05]
[1744146018780,0.15832131,77161.0,77158.0,9.862e-05]
[1744146019096,0.220324,77159.0,77158.0,9.862e-05]
[1744146020858,0.001,77159.0,77158.0,9.862e-05]
[1744146021334,0.208364,77159.0,77158.0,9.862e-05]
[1744146023683,0.221324,77159.0,77158.0,9.862e-05]
[1744146024167,0.208364,77159.0,77158.0,9.862e-05]
[1744146025301,0.001,77159.0,77158.0,9.862e-05]
[1744146025456,0.001,77159.0,77158.0,0.20746462]
[1744146025839,0.001,77159.0,77158.0,0.22042462]
[1744146028166,0.001,77159.0,77158.0,0.20746462]
[1744146028511,0.001,77159.0,77158.0,0.22042462]
[1744146029605,0.34,77169.0,77166.0,0.220303]
[1744146029819,0.34,77169.0,77166.0,0.207344]
[1744146030191,0.547337,77169.0,77166.0,0.207344]
[1744146030394,0.265587,77172.0,77165.0,0.012959]
[1744146030395,0.0453,77172.0,77168.0,0.012958]
[1744146030597,0.35063326,77180.0,77168.0,0.012958]
[1744146030598,0.0492,77178.0,77175.0,0.207319]
[1744146030798,0.34,77170.0,77166.0,0.012959]
[1744146031137,0.34,77170.0,77164.0,0.207345]
[1744146031335,0.34,77168.0,77163.0,0.207353]
[1744146031553,0.34,77168.0,77167.0,0.207342]
[1744146032649,0.34,77169.0,77167.0,0.207342]
[1744146032849,0.207344,77167.0,77164.0,0.20735]
[1744146033580,0.207344,77167.0,77165.0,0.207347]
[1744146033963,0.207344,77167.0,77164.0,0.20735]
[1744146034578,0.001,77168.0,77167.0,0.2203]
[1744146034749,0.34,77169.0,77164.0,0.012959]
[1744146034750,0.34,77169.0,77164.0,0.207342]
[1744146034966,0.34,77169.0,77158.0,0.20746262]
[1744146034967,0.012959,77166.0,77161.0,0.207358]
[1744146035169,0.207352,77165.0,77162.0,0.207354]
[1744146035758,0.207352,77165.0,77163.0,0.207352]
[1744146036383,0.207345,77166.0,77164.0,0.20735]
[1744146036584,0.207345,77166.0,77163.0,0.207352]
[1744146036786,0.207348,77165.0,77163.0,0.207352]
[1744146037306,0.207352,77164.0,77162.0,0.002]
[1744146038454,0.207352,77164.0,77161.0,0.207356]
[1744146038629,0.207352,77164.0,77163.0,0.001]
[1744146039213,0.207352,77164.0,77161.0,0.207356]
[1744146039809,0.207352,77164.0,77162.0,0.207355]
[1744146040533,0.207352,77164.0,77161.0,0.207356]
[1744146042460,0.207352,77164.0,77161.0,0.208356]
[1744146043157,0.207352,77164.0,77162.0,0.207355]
[1744146044071,0.207355,77163.0,77161.0,0.208357]
[1744146044238,0.207352,77164.0,77162.0,0.207355]
[1744146044639,0.207352,77164.0,77161.0,0.207357]
[1744146044911,0.207345,77166.0,77162.0,0.207353]
[1744146045119,0.34,77167.0,77163.0,0.207351]
[1744146045252,0.207342,77168.0,77166.0,0.207343]
[1744146045253,0.34,77168.0,77166.0,0.207343]
[1744146045450,0.34,77168.0,77167.0,0.207342]
[1744146045660,0.547341,77168.0,77165.0,0.207345]
[1744146045878,0.547341,77168.0,77164.0,0.012959]
[1744146046075,0.207344,77167.0,77164.0,0.20735]
[1744146046285,0.207345,77166.0,77163.0,0.20735]
[1744146048964,0.207348,77165.0,77163.0,0.20735]
[1744146049109,0.207348,77165.0,77162.0,0.207355]
[1744146051128,0.20735,77164.0,77161.0,0.220317]
[1744146051668,0.207345,77166.0,77163.0,0.207353]
[1744146052263,0.207349,77165.0,77162.0,0.207355]
[1744146053664,0.20735,77166.0,77163.0,0.20735]
[1744146054690,0.207347,77167.0,77164.0,0.207349]
[1744146055050,0.207345,77166.0,77164.0,0.207349]
[1744146055424,0.207345,77166.0,77163.0,0.20735]
[1744146056790,0.207348,77165.0,77162.0,0.22031]
[1744146057845,0.34,77167.0,77164.0,0.207349]
[1744146057977,0.207345,77166.0,77163.0,0.220311]
[1744146058178,0.207345,77166.0,77164.0,0.20735]
[1744146058376,0.207345,77166.0,77163.0,0.207352]
[1744146059345,0.207347,77165.0,77163.0,0.207352]
[1744146059515,0.207345,77166.0,77161.0,0.012959]
[1744146059932,0.207345,77166.0,77163.0,0.207351]
[1744146060740,0.207348,77165.0,77163.0,0.207351]
[1744146063219,0.20735,77164.0,77161.0,0.220316]
[1744146063688,0.20736,77161.0,77158.0,0.20745762]
[1744146063890,0.207352,77164.0,77160.0,0.207361]
[1744146064238,0.207352,77164.0,77158.0,0.01305862]
[1744146064239,0.207364,77159.0,77158.0,9.862e-05]
[1744146065172,0.207356,77162.0,77160.0,0.001]
[1744146065377,0.207358,77161.0,77160.0,0.001]
[1744146066533,0.207364,77159.0,77158.0,0.00209862]
[1744146066917,0.207364,77159.0,77158.0,0.00409862]
[1744146067240,0.207364,77159.0,77158.0,0.00209862]
[1744146068246,0.207355,77162.0,77158.0,0.00409862]
[1744146068446,0.207361,77163.0,77158.0,0.00409862]
[1744146068598,0.0456,77164.0,77158.0,0.00409862]
[1744146068599,0.207362,77160.0,77158.0,0.00409862]
[1744146069223,0.207359,77161.0,77158.0,0.21146262]
[1744146069420,0.207356,77162.0,77158.0,0.00409862]
[1744146069639,0.207358,77161.0,77159.0,0.207362]
[1744146069976,0.207358,77161.0,77158.0,0.21146362]
[1744146070352,0.207355,77162.0,77158.0,0.01505862]
[1744146070555,0.207358,77161.0,77159.0,0.207363]
[1744146070895,0.207355,77162.0,77159.0,0.207362]
[1744146071097,0.207353,77163.0,77158.0,0.00209862]
[1744146071299,0.20736,77161.0,77159.0,0.002]
[1744146071757,0.20736,77161.0,77159.0,0.003]
[1744146072059,0.20736,77161.0,77159.0,0.002]
[1744146072647,0.20736,77161.0,77159.0,0.209363]
[1744146073005,0.20736,77161.0,77159.0,0.207363]
[1744146073608,0.012958,77167.0,77158.0,0.01505862]
[1744146073811,0.05346315,77166.0,77159.0,0.207363]
[1744146074030,0.34,77164.0,77159.0,0.210363]
[1744146074594,0.34,77164.0,77159.0,0.208363]
[1744146074791,0.547351,77164.0,77160.0,0.207361]
[1744146075134,0.207353,77163.0,77159.0,0.209363]
[1744146075559,0.207356,77162.0,77159.0,0.210363]
[1744146075786,0.207353,77163.0,77159.0,0.210363]
[1744146076010,0.207356,77162.0,77159.0,0.210363]
[1744146076326,0.547349,77165.0,77161.0,0.207353]
[1744146076629,0.20735,77164.0,77160.0,0.22032]
[1744146076816,0.207353,77163.0,77160.0,0.20736]
[1744146077030,0.207353,77163.0,77159.0,0.207363]
[1744146077239,0.207359,77161.0,77159.0,0.003]
[1744146077454,0.207359,77161.0,77159.0,0.002]
[1744146077651,0.207356,77162.0,77159.0,0.209363]
[1744146077796,0.207356,77162.0,77159.0,0.207363]
[1744146078002,0.207356,77162.0,77160.0,0.001]
[1744146078208,0.197356,77162.0,77160.0,0.001]
[1744146079281,0.207351,77164.0,77160.0,0.20836]
[1744146079562,0.207356,77162.0,77159.0,0.207363]